fUST/lending_fUST_20240910
["ID","MTS","AMOUNT","RATE_DAILY","PERIOD"]
[337661884,1725925851010,-897.94,0.0002218,2]
[337661885,1725925851019,-897.94,0.0002218,2]
[337661886,1725925851028,-897.94,0.0002218,2]
[337661887,1725925851037,-897.94,0.0002218,2]
[337661888,1725925851046,-897.94,0.0002219,2]
[337661889,1725925851055,-897.94,0.0002219,2]
[337661890,1725925851065,-897.94,0.0002219,2]
[337661891,1725925851074,-500.0,0.00022191,2]
[337661892,1725925851085,-151.0,0.00022191,7]
[337661893,1725925851094,-501.9617986,0.00022191,2]
[337661894,1725925851103,-500.0,0.00022191,2]
[337661895,1725925851112,-1555.93,0.00022191,2]
[337661896,1725925851122,-502.12412513,0.00022191,2]
[337661897,1725925851131,-500.0,0.00022191,2]
[337661898,1725925851140,-500.0,0.00022191,2]
[337661899,1725925851150,-358.4850641,0.00022191,2]
[337661900,1725925851159,-151.0,0.00022191,7]
[337661901,1725925851168,-151.0,0.00022191,7]
[337661902,1725925851178,-500.0,0.00022191,2]
[337661903,1725925851187,-905.47,0.00022191,2]
[337661904,1725925851196,-500.0,0.00022191,2]
[337661905,1725925851205,-500.0,0.00022191,2]
[337661906,1725925851214,-500.0,0.00022191,2]
[337661907,1725925851224,-596.26,0.00022191,2]
[337661908,1725925851233,-500.0,0.00022191,2]
[337661909,1725925851242,-500.0,0.00022191,2]
[337661910,1725925851251,-500.0,0.00022191,2]
[337661911,1725925851260,-899.75,0.00022191,2]
[337661912,1725925851270,-500.0,0.00022191,2]
[337661913,1725925851281,-500.0,0.00022191,2]
[337661914,1725925851292,-500.0,0.00022191,2]
[337661915,1725925851302,-500.0,0.00022191,2]
[337661916,1725925851311,-503.12993496,0.00022191,2]
[337661917,1725925851321,-1481.28,0.00022191,2]
[337661918,1725925851332,-500.0,0.00022191,2]
[337661919,1725925851341,-500.0,0.00022191,2]
[337661920,1725925851353,-500.0,0.00022191,2]
[337661921,1725925851363,-833.33,0.00022191,2]
[337661922,1725925851373,-500.0,0.00022191,2]
[337661923,1725925851382,-500.0,0.00022191,2]
[337661924,1725925851391,-500.0,0.00022191,2]
[337661925,1725925851403,-152.79329,0.00022191,7]
[337661926,1725925851412,-500.0,0.00022191,2]
[337661927,1725925851423,-501.59963453,0.00022191,2]
[337661928,1725925851434,-923.16,0.00022191,2]
[337661929,1725925851444,-615.69,0.00022191,2]
[337661930,1725925851456,-500.0,0.00022191,2]
[337661931,1725925851465,-500.0,0.00022191,2]
[337661932,1725925851475,-500.0,0.00022191,2]
[337661933,1725925851483,-500.0,0.00022191,2]
[337661934,1725925851492,-212.72358062,0.00022191,2]
[337661935,1725925851501,-519.48360018,0.00022191,2]
[337661936,1725925851510,-500.0,0.00022191,2]
[337661937,1725925851520,-500.0,0.00022191,2]
[337661938,1725925851529,-500.0,0.00022191,2]
[337661939,1725925851538,-687.32,0.00022191,2]
[337661940,1725925851547,-499.33184194,0.00022191,2]
[337661941,1725925851556,-500.0,0.00022191,2]
[337661942,1725925851565,-858.71,0.00022191,2]
[337661943,1725925851575,-500.0,0.00022191,2]
[337661944,1725925851585,-500.0,0.00022191,2]
[337661945,1725925851594,-500.0,0.00022191,2]
[337661946,1725925851603,-501.32120845,0.00022191,2]
[337661947,1725925851612,-500.0,0.00022191,2]
[337661948,1725925851621,-151.0,0.00022191,7]
[337661949,1725925851630,-151.0,0.00022191,7]
[337661950,1725925851639,-500.0,0.00022191,2]
[337661951,1725925851648,-151.0,0.00022191,7]
[337661952,1725925851658,-500.0,0.00022191,2]
[337661953,1725925851667,-627.47745446,0.00022191,2]
[337661954,1725925851676,-2130.56,0.00022191,2]
[337661955,1725925851686,-500.0,0.00022191,2]
[337661956,1725925851695,-500.0,0.00022191,2]
[337661957,1725925851705,-480.270145,0.00022191,2]
[337661958,1725925851714,-521.81,0.00022191,2]
[337661959,1725925851723,-500.0,0.00022191,2]
[337661960,1725925851732,-151.0,0.00022191,7]
[337661961,1725925851741,-151.0,0.00022191,7]
[337661962,1725925851750,-151.0,0.00022191,7]
[337661963,1725925851759,-1128.69,0.00022191,2]
[337661964,1725925851769,-500.0,0.00022191,2]
[337661965,1725925851780,-746.44,0.00022191,2]
[337661966,1725925851790,-500.0,0.00022191,2]
[337661967,1725925851800,-659.95,0.00022191,2]
[337661968,1725925851809,-500.0,0.00022191,2]
[337661969,1725925851819,-570.48,0.00022191,2]
[337661970,1725925851834,-500.0,0.00022191,2]
[337661971,1725925851843,-500.0,0.00022191,2]
[337661972,1725925851852,-500.0,0.00022191,2]
[337661973,1725925851861,-500.0,0.00022191,2]
[337661974,1725925851870,-500.0,0.00022191,2]
[337661975,1725925851879,-298.74964935,0.00022191,2]
[337661976,1725925851888,-500.0,0.00022191,2]
[337661977,1725925851898,-151.0,0.00022191,7]
[337661978,1725925851908,-151.0,0.00022191,7]
[337661979,1725925851916,-151.0,0.00022191,7]
[337661980,1725925851926,-500.0,0.00022191,2]
[337661981,1725925851935,-1272.74,0.00022191,2]
[337661982,1725925851944,-1223.80736,0.00022191,7]
[337661983,1725925851953,-1223.80736,0.00022191,7]
[337661984,1725925851962,-1223.80736,0.00022191,7]
[337661985,1725925851971,-1223.80736,0.00022191,7]
[337661986,1725925851981,-1223.80736,0.00022191,7]
[337661987,1725925851991,-500.0,0.00022191,2]
[337661988,1725925852000,-1223.80736,0.00022191,7]
[337661989,1725925852010,-500.0,0.00022191,2]
[337661990,1725925852019,-500.0,0.00022191,2]
[337661991,1725925852028,-152.803863,0.00022191,7]
[337661992,1725925852038,-500.0,0.00022191,2]
[337661993,1725925852047,-222.4929738,0.00022191,2]
[337661994,1725925852055,-757.81,0.00022191,2]
[337661995,1725925852065,-663.31,0.00022191,2]
[337661996,1725925852075,-500.0,0.00022191,2]
[337661997,1725925852084,-500.0,0.00022191,2]
[337661998,1725925852093,-645.44,0.00022191,2]
[337661999,1725925852103,-500.0,0.00022191,2]
[337662000,1725925852112,-369.34462129,0.00022191,2]
[337662001,1725925852122,-581.07,0.00022191,2]
[337662002,1725925852131,-500.0,0.00022191,2]
[337662003,1725925852140,-1367.77,0.00022191,2]
[337662004,1725925852264,-500.0,0.00022191,2]
[337662005,1725925852274,-500.0,0.00022191,2]
[337662006,1725925852284,-502.27210797,0.00022191,2]
[337662007,1725925852294,-513.65501655,0.00022191,2]
[337662008,1725925852302,-500.0,0.00022191,2]
[337662009,1725925852312,-500.0,0.00022191,2]
[337662010,1725925852323,-500.0,0.00022191,2]
[337662011,1725925852332,-500.0,0.00022191,2]
[337662012,1725925852341,-501.44245015,0.00022191,2]
[337662013,1725925852351,-500.0,0.00022191,2]
[337662014,1725925852362,-500.0,0.00022191,2]
[337662015,1725925852371,-500.0,0.00022191,2]
[337662016,1725925852381,-886.48,0.00022191,2]
[337662017,1725925852390,-500.0,0.00022191,2]
[337662018,1725925852400,-1906.16,0.00022191,2]
[337662019,1725925852409,-582.5,0.00022191,2]
[337662020,1725925852418,-500.0,0.00022191,2]
[337662021,1725925852428,-500.0,0.00022191,2]
[337662022,1725925852437,-500.0,0.00022191,2]
[337662023,1725925852447,-500.0,0.00022191,2]
[337662024,1725925852456,-500.0,0.00022191,2]
[337662025,1725925852466,-917.18,0.00022191,2]
[337662026,1725925852475,-500.0,0.00022191,2]
[337662027,1725925852484,-500.0,0.00022191,2]
[337662028,1725925852493,-553.55,0.00022191,2]
[337662029,1725925852502,-500.0,0.00022191,2]
[337662030,1725925852512,-500.0,0.00022191,2]
[337662031,1725925852521,-500.0,0.00022191,2]
[337662032,1725925852530,-596.45,0.00022191,2]
[337662033,1725925852539,-500.0,0.00022191,2]
[337662034,1725925852549,-151.0,0.00022191,7]
[337662035,1725925852559,-500.0,0.00022191,2]
[337662036,1725925852570,-634.52121361,0.00022191,2]
[337662037,1725925852579,-500.0,0.00022191,2]
[337662038,1725925852589,-500.0,0.00022191,2]
[337662039,1725925852599,-500.0,0.00022191,2]
[337662040,1725925852608,-500.0,0.00022191,2]
[337662041,1725925852618,-500.0,0.00022191,2]
[337662042,1725925852627,-763.38,0.00022191,2]
[337662043,1725925852636,-500.0,0.00022191,2]
[337662044,1725925852645,-500.0,0.00022191,2]
[337662045,1725925852654,-500.0,0.00022191,2]
[337662046,1725925852664,-1001.31,0.00022191,2]
[337662047,1725925852673,-500.0,0.00022191,2]
[337662048,1725925852682,-500.0,0.00022191,2]
[337662049,1725925852691,-500.0,0.00022191,2]
[337662050,1725925852702,-500.0,0.00022191,2]
[337662051,1725925852713,-1031.63,0.00022191,2]
[337662052,1725925852722,-500.0,0.00022191,2]
[337662053,1725925852732,-500.0,0.00022191,2]
[337662054,1725925852741,-763.63,0.00022191,2]
[337662055,1725925852752,-336.54316478,0.00022191,2]
[337662056,1725925852761,-151.0,0.00022191,7]
[337662057,1725925852771,-151.0,0.00022191,7]
[337662058,1725925852784,-151.0,0.00022191,7]
[337662059,1725925852794,-500.0,0.00022191,2]
[337662060,1725925852803,-151.0,0.00022191,2]
[337662061,1725925852813,-151.931183,0.00022191,2]
[337662062,1725925852823,-500.0,0.00022191,2]
[337662063,1725925852832,-500.0,0.00022191,2]
[337662064,1725925852841,-693.91,0.00022191,2]
[337662065,1725925852852,-461.4116296,0.00022191,2]
[337662066,1725925852861,-394.04101147,0.00022191,2]
[337662067,1725925852870,-505.0,0.00022191,2]
[337662068,1725925852879,-321.916059,0.00022191,7]
[337662069,1725925852888,-321.916059,0.00022191,7]
[337662070,1725925852898,-321.916059,0.00022191,7]
[337662071,1725925852907,-500.0,0.00022191,2]
[337662072,1725925852917,-500.0,0.00022191,2]
[337662073,1725925852928,-321.916059,0.00022191,7]
[337662074,1725925852938,-321.916059,0.00022191,7]
[337662075,1725925852948,-321.916059,0.00022191,7]
[337662076,1725925852960,-500.0,0.00022191,2]
[337662077,1725925852969,-500.0,0.00022191,2]
[337662078,1725925852979,-500.0,0.00022191,2]
[337662079,1725925852988,-915.62,0.00022191,2]
[337662080,1725925852998,-500.0,0.00022191,2]
[337662081,1725925853006,-151.0,0.00022191,7]
[337662082,1725925853015,-151.0,0.00022191,7]
[337662083,1725925853025,-151.0,0.00022191,7]
[337662084,1725925853034,-500.0,0.00022191,2]
[337662085,1725925853044,-599.59,0.00022191,2]
[337662086,1725925853053,-500.0,0.00022191,2]
[337662087,1725925853062,-500.0,0.00022191,2]
[337662088,1725925853072,-500.0,0.00022191,2]
[337662089,1725925853081,-500.0,0.00022191,2]
[337662090,1725925853090,-532.76,0.00022191,2]
[337662091,1725925853099,-500.0,0.00022191,2]
[337662092,1725925853109,-746.91,0.00022191,2]
[337662093,1725925853118,-499.88844876,0.00022191,2]
[337662094,1725925853127,-500.0,0.00022191,2]
[337662095,1725925853137,-507.16773653,0.00022191,2]
[337662096,1725925853146,-500.0,0.00022191,2]
[337662097,1725925853155,-500.0,0.00022191,2]
[337662098,1725925853164,-500.0,0.00022191,2]
[337662099,1725925853173,-151.0,0.00022191,7]
[337662100,1725925853181,-157.827803,0.00022191,7]
[337662101,1725925853191,-500.0,0.00022191,2]
[337662102,1725925853200,-500.0,0.00022191,2]
[337662103,1725925853209,-500.0,0.00022191,2]
[337662104,1725925853218,-932.55,0.00022191,2]
[337662105,1725925853227,-500.0,0.00022191,2]
[337662106,1725925853236,-646.6,0.00022191,2]
[337662107,1725925853245,-500.0,0.00022191,2]
[337662108,1725925853255,-500.0,0.00022191,2]
[337662109,1725925853264,-500.0,0.00022191,2]
[337662110,1725925853274,-500.0,0.00022191,2]
[337662111,1725925853283,-500.0,0.00022191,2]
[337662112,1725925853292,-160.311723,0.00022191,7]
[337662113,1725925853303,-974.13,0.00022191,2]
[337662114,1725925853312,-566.12553307,0.00022191,2]
[337662115,1725925853322,-677.64,0.00022191,2]
[337662116,1725925853331,-802.83,0.00022191,2]
[337662117,1725925853340,-167.664723,0.00022191,7]
[337662118,1725925853349,-500.0,0.00022191,2]
[337662119,1725925853359,-500.0,0.00022191,2]
[337662120,1725925853368,-1549.92,0.00022191,2]
[337662121,1725925853377,-989.09,0.00022191,2]
[337662122,1725925853387,-881.61,0.00022191,2]
[337662123,1725925853396,-500.0,0.00022191,2]
[337662124,1725925853405,-500.0,0.00022191,2]
[337662125,1725925853414,-1022.68,0.00022191,2]
[337662126,1725925853424,-500.0,0.00022191,2]
[337662127,1725925853434,-500.0,0.00022191,2]
[337662128,1725925853443,-500.0,0.00022191,2]
[337662129,1725925853452,-500.0,0.00022191,2]
[337662130,1725925853461,-253.02742132,0.00022191,2]
[337662131,1725925853471,-500.0,0.00022191,2]
[337662132,1725925853480,-774.12,0.00022191,2]
[337662133,1725925853489,-1007.04,0.00022191,2]
[337662134,1725925853499,-500.0,0.00022191,2]
[337662135,1725925853509,-500.0,0.00022191,2]
[337662136,1725925853517,-500.0,0.00022191,2]
[337662137,1725925853527,-500.0,0.00022191,2]
[337662138,1725925853536,-500.0,0.00022191,2]
[337662139,1725925853546,-3850.54,0.00022191,2]
[337662140,1725925853555,-713.09,0.00022191,2]
[337662141,1725925853565,-500.0,0.00022191,2]
[337662142,1725925853575,-500.0,0.00022191,2]
[337662143,1725925853584,-1924.29,0.00022191,2]
[337662144,1725925853594,-500.0,0.00022191,2]
[337662145,1725925853603,-1158.56,0.00022191,2]
[337662146,1725925853613,-500.0,0.00022191,2]
[337662147,1725925853622,-716.53,0.00022191,2]
[337662148,1725925853632,-446.41696966,0.00022191,2]
[337662149,1725925853642,-500.0,0.00022191,2]
[337662150,1725925853652,-500.0,0.00022191,2]
[337662151,1725925853663,-500.0,0.00022191,2]
[337662152,1725925853673,-2093.14,0.00022191,2]
[337662153,1725925853683,-500.0,0.00022191,2]
[337662154,1725925853693,-786.94,0.00022191,2]
[337662155,1725925853703,-500.0,0.00022191,2]
[337662156,1725925853712,-500.0,0.00022191,2]
[337662157,1725925853721,-500.0,0.00022191,2]
[337662158,1725925853731,-500.0,0.00022191,2]
[337662159,1725925853740,-500.0,0.00022191,2]
[337662160,1725925853750,-500.0,0.00022191,2]
[337662161,1725925853759,-500.0,0.00022191,2]
[337662162,1725925853770,-500.0,0.00022191,2]
[337662163,1725925853781,-500.0,0.00022191,2]
[337662164,1725925853791,-500.0,0.00022191,2]
[337662165,1725925853801,-500.0,0.00022191,2]
[337662166,1725925853811,-500.0,0.00022191,2]
[337662167,1725925853822,-151.0,0.00022191,7]
[337662168,1725925853832,-500.0,0.00022191,2]
[337662169,1725925853842,-151.0,0.00022191,7]
[337662170,1725925853855,-1097.42,0.00022191,2]
[337662171,1725925853864,-151.0,0.00022191,7]
[337662172,1725925853873,-500.0,0.00022191,2]
[337662173,1725925853883,-734.26,0.00022191,2]
[337662174,1725925853892,-500.0,0.00022191,2]
[337662175,1725925853902,-500.0,0.00022191,2]
[337662176,1725925853912,-505.5892277,0.00022191,2]
[337662177,1725925853921,-1265.35,0.00022191,2]
[337662178,1725925853931,-500.0,0.00022191,2]
[337662179,1725925853942,-500.0,0.00022191,2]
[337662180,1725925853951,-663.22,0.00022191,2]
[337662181,1725925853961,-500.0,0.00022191,2]
[337662182,1725925853971,-500.0,0.00022191,2]
[337662183,1725925853980,-500.0,0.00022191,2]
[337662184,1725925853990,-500.0,0.00022191,2]
[337662185,1725925854000,-500.0,0.00022191,2]
[337662186,1725925854012,-500.0,0.00022191,2]
[337662187,1725925854022,-500.0,0.00022191,2]
[337662188,1725925854032,-1771.22,0.00022191,2]
[337662189,1725925854043,-500.0,0.00022191,2]
[337662190,1725925854053,-1249.44,0.00022191,2]
[337662191,1725925854063,-500.0,0.00022191,2]
[337662192,1725925854073,-500.0,0.00022191,2]
[337662193,1725925854082,-500.0,0.00022191,2]
[337662194,1725925854091,-676.42,0.00022191,2]
[337662195,1725925854102,-1328.97,0.00022191,2]
[337662196,1725925854112,-500.0,0.00022191,2]
[337662197,1725925854121,-831.12,0.00022191,2]
[337662198,1725925854133,-500.0,0.00022191,2]
[337662199,1725925854143,-151.0,0.00022191,7]
[337662200,1725925854155,-151.0,0.00022191,7]
[337662201,1725925854164,-151.0,0.00022191,7]
[337662202,1725925854174,-500.0,0.00022191,2]
[337662203,1725925854183,-500.0,0.00022191,2]
[337662204,1725925854192,-500.0,0.00022191,2]
[337662205,1725925854201,-43112.67,0.00022191,2]
[337662206,1725925854210,-570.0,0.00022191,2]
[337662207,1725925854220,-876.86,0.00022191,2]
[337662208,1725925854230,-454.749347,0.00022191,7]
[337662209,1725925854350,-454.749347,0.00022191,7]
[337662210,1725925854359,-454.749347,0.00022191,7]
[337662211,1725925854368,-500.0,0.00022191,2]
[337662212,1725925854378,-938.17,0.00022191,2]
[337662213,1725925854387,-454.749347,0.00022191,7]
[337662214,1725925854396,-920.62,0.00022191,2]
[337662215,1725925854405,-454.749347,0.00022191,7]
[337662216,1725925854415,-454.749347,0.00022191,7]
[337662217,1725925854424,-698.78,0.00022191,2]
[337662218,1725925854433,-500.0,0.00022191,2]
[337662219,1725925854443,-403.43054338,0.00022191,2]
[337662220,1725925854452,-804.67,0.00022191,2]
[337662221,1725925854462,-1904.0,0.00022191,2]
[337662222,1725925854471,-500.0,0.00022191,2]
[337662223,1725925854480,-511.68,0.00022191,2]
[337662224,1725925854489,-72640.78,0.00022191,2]
[337662225,1725925854498,-500.0,0.00022191,2]
[337662226,1725925854508,-500.0,0.00022191,2]
[337662227,1725925854517,-500.0,0.00022191,2]
[337662228,1725925854526,-607.88,0.00022191,2]
[337662229,1725925854535,-500.0,0.00022191,2]
[337662230,1725925854545,-500.0,0.00022191,2]
[337662231,1725925854555,-500.0,0.00022191,2]
[337662232,1725925854565,-500.0,0.00022191,2]
[337662233,1725925854575,-847.68,0.00022191,2]
[337662234,1725925854584,-151.0,0.00022191,7]
[337662235,1725925854594,-2036.96,0.00022191,2]
[337662236,1725925854604,-151.0,0.00022191,7]
[337662237,1725925854615,-500.0,0.00022191,2]
[337662238,1725925854624,-151.0,0.00022191,7]
[337662239,1725925854634,-3833.89,0.00022191,2]
[337662240,1725925854643,-500.0,0.00022191,2]
[337662241,1725925854653,-500.0,0.00022191,2]
[337662242,1725925854663,-500.0,0.00022191,2]
[337662243,1725925854672,-414.39717218,0.00022191,2]
[337662244,1725925854683,-500.0,0.00022191,2]
[337662245,1725925854694,-536.06,0.00022191,2]
[337662246,1725925854703,-289.71,0.00022191,2]
[337662247,1725925854713,-942.87,0.00022191,2]
[337662248,1725925854722,-577.74,0.00022191,2]
[337662249,1725925854732,-512.76368327,0.00022191,2]
[337662250,1725925854742,-2531.53,0.00022191,2]
[337662251,1725925854751,-500.0,0.00022191,2]
[337662252,1725925854762,-500.0,0.00022191,2]
[337662253,1725925854773,-500.0,0.00022191,2]
[337662254,1725925854786,-500.0,0.00022191,2]
[337662255,1725925854796,-500.0,0.00022191,2]
[337662256,1725925854808,-500.0,0.00022191,2]
[337662257,1725925854818,-798.75,0.00022191,2]
[337662258,1725925854830,-274.81869451,0.00022191,2]
[337662259,1725925854839,-1941.61,0.00022191,2]
[337662260,1725925854850,-500.0,0.00022191,2]
[337662261,1725925854861,-366.49500167,0.00022191,2]
[337662262,1725925854872,-644.45,0.00022191,2]
[337662263,1725925854882,-500.0,0.00022191,2]
[337662264,1725925854892,-500.0,0.00022191,2]
[337662265,1725925854901,-873.03,0.00022191,2]
[337662266,1725925854911,-500.0,0.00022191,2]
[337662267,1725925854921,-4811.08,0.00022191,2]
[337662268,1725925854930,-500.0,0.00022191,2]
[337662269,1725925854939,-500.0,0.00022191,2]
[337662270,1725925854948,-500.0,0.00022191,2]
[337662271,1725925854957,-500.0,0.00022191,2]
[337662272,1725925854966,-1495.82,0.00022191,2]
[337662273,1725925854975,-623.57,0.00022191,2]
[337662274,1725925854985,-500.0,0.00022191,2]
[337662275,1725925854994,-501.59858043,0.00022191,2]
[337662276,1725925855005,-500.0,0.00022191,2]
[337662277,1725925855014,-540.11353668,0.00022191,2]
[337662278,1725925855024,-2017.46,0.00022191,2]
[337662279,1725925855033,-8838.68,0.00022191,2]
[337662280,1725925855043,-500.0,0.00022191,2]
[337662281,1725925855053,-1548.59,0.00022191,2]
[337662282,1725925855065,-522.7,0.00022191,2]
[337662283,1725925855080,-224.241346,0.00022191,7]
[337662284,1725925855089,-1851.4,0.00022191,2]
[337662285,1725925855098,-224.241346,0.00022191,7]
[337662286,1725925855107,-224.241346,0.00022191,7]
[337662287,1725925855116,-500.0,0.00022191,2]
[337662288,1725925855126,-500.0,0.00022191,2]
[337662289,1725925855136,-522.39,0.00022191,2]
[337662290,1725925855145,-224.241346,0.00022191,7]
[337662291,1725925855155,-224.241346,0.00022191,7]
[337662292,1725925855164,-224.241346,0.00022191,7]
[337662293,1725925855173,-525.69215942,0.00022191,2]
[337662294,1725925855183,-500.0,0.00022191,2]
[337662295,1725925855192,-512.09,0.00022191,2]
[337662296,1725925855201,-4492.47,0.00022191,2]
[337662297,1725925855210,-421.55787517,0.00022191,2]
[337662298,1725925855219,-1130.81,0.00022191,2]
[337662299,1725925855228,-503.27021417,0.00022191,2]
[337662300,1725925855238,-500.0,0.00022191,2]
[337662301,1725925855247,-161.769885,0.00022191,7]
[337662302,1725925855256,-853.58,0.00022191,2]
[337662303,1725925855265,-161.769885,0.00022191,7]
[337662304,1725925855274,-161.769885,0.00022191,7]
[337662305,1725925855283,-500.0,0.00022191,2]
[337662306,1725925855292,-500.0,0.00022191,2]
[337662307,1725925855301,-2109.54,0.00022191,2]
[337662308,1725925855313,-161.769885,0.00022191,7]
[337662309,1725925855325,-161.769885,0.00022191,7]
[337662310,1725925855335,-567.37265703,0.00022191,2]
[337662311,1725925855344,-161.769885,0.00022191,7]
[337662312,1725925855356,-125.89002368,0.00022191,2]
[337662313,1725925855390,-463.60802538,0.00022191,2]
[337662314,1725925855401,-674.03195094,0.00022191,2]
[337662315,1725925855410,-500.0,0.00022191,2]
[337662316,1725925855419,-537.73,0.00022191,2]
[337662317,1725925855429,-1469.42,0.00022191,2]
[337662318,1725925855438,-2521.56,0.00022191,2]
[337662319,1725925855447,-500.0,0.00022191,2]
[337662320,1725925855456,-500.0,0.00022191,2]
[337662321,1725925855467,-1640.45,0.00022191,2]
[337662322,1725925855475,-500.0,0.00022191,2]
[337662323,1725925855484,-500.0,0.00022191,2]
[337662324,1725925855493,-500.0,0.00022191,2]
[337662325,1725925855502,-500.0,0.00022191,2]
[337662326,1725925855511,-666.88,0.00022191,2]
[337662327,1725925855520,-346.83611903,0.00022191,2]
[337662328,1725925856516,-1208.55044815,0.00021684,2]
[337662329,1725925856544,-433.52187515,0.00021684,2]
[337662330,1725925856553,-1642.0723233,0.00021684,2]
[337662331,1725925856563,-671.02580155,0.00021684,2]
[337662332,1725925857554,-362.53539744,0.00021684,2]
[337662334,1725925964381,1059.0,0.00021,3]
[337662335,1725925973108,5000.0,0.00021,3]
[337662336,1725925988208,1093.73549941,0.00021,3]
[337662337,1725926005164,155.0,0.00021,3]
[337662338,1725926009790,155.0,0.00021,3]
[337662339,1725926014412,155.0,0.00021,3]
[337662340,1725926018988,155.0,0.00021,3]
[337662341,1725926023812,155.0,0.00021,3]
[337662342,1725926028493,155.0,0.00021,3]
[337662343,1725926032968,155.0,0.00021,3]
[337662344,1725926037476,155.0,0.00021,3]
[337662345,1725926042426,234.55280221,0.00021,3]
[337662350,1725926212629,1000.0,0.0002,2]
[337662352,1725926262836,600.54702456,0.00020001,2]
[337662355,1725926368328,10000.0,0.00020001,2]
[337662356,1725926404404,172.62659595,0.0001,2]
[337662358,1725926453684,352.214529,0.00019225,2]
[337662361,1725926549495,250.0,0.00019349,2]
[337662362,1725926549608,250.0,0.00019402,2]
[337662363,1725926549966,250.0,0.00019455,2]
[337662364,1725926550050,250.0,0.00019509,2]
[337662365,1725926550296,250.0,0.00019562,2]
[337662366,1725926550518,250.0,0.00019615,2]
[337662367,1725926550761,250.0,0.00019668,2]
[337662368,1725926551231,250.0,0.00019721,2]
[337662369,1725926551440,250.0,0.00019774,2]
[337662370,1725926551652,250.0,0.00019827,2]
[337662371,1725926551890,250.0,0.0001988,2]
[337662372,1725926552144,250.0,0.00019933,2]
[337662373,1725926552619,250.0,0.00019986,2]
[337662374,1725926567948,2324.0591592,0.00019178,2]
[337662375,1725926645045,168.8322633,0.0001917,2]
[337662378,1725926707410,500.0,0.0001918,2]
[337662380,1725926728925,500.0,0.0002,2]
[337662381,1725926746142,605.75007856,0.0002,2]
[337662382,1725926772003,3000.0,0.00019181,2]
[337662383,1725926794938,-250.0,0.00020039,2]
[337662384,1725926794961,-250.0,0.00020092,2]
[337662385,1725926794984,-267.11401726,0.00020098,2]
[337662386,1725926795007,-250.0,0.00020145,2]
[337662387,1725926795030,-4100.59553521,0.00020152,2]
[337662388,1725926795054,-250.0,0.00020198,2]
[337662389,1725926795078,-1210.0,0.00020199,2]
[337662390,1725926795099,-842.64855016,0.000202,2]
[337662392,1725926819000,12179.84875347,0.00019256,2]
[337662393,1725926819026,12720.15124653,0.00019256,2]
[337662402,1725927031675,-157.35144984,0.000202,2]
[337662403,1725927031685,-1200.0,0.00020211,2]
[337662404,1725927031695,-250.0,0.00020251,2]
[337662405,1725927031705,-2345.48854765,0.000203,2]
[337662420,1725927037638,-1263.60944525,0.000203,2]